[Event "Titled Tuesday Blitz March 28 Early 2023"]
[White "Fiorito, Joaquin"]
[Black "Boraso, Alessio"]
[WhiteFideId "180173"]
[BlackFideId "848077"]
[WhiteElo "2157"]
[BlackElo "2286"]
[Result "1-0"]
[Round "07"]
[TimeControl "180+2"]
[Date "2023.03.28"]
[WhiteClock "0:00:18"]
[BlackClock "0:00:08"]

1. d4 {[%clk 0:03:00]}  Nf6 {[%clk 0:02:59]} 2. c4 {[%clk 0:02:59]}  c5 {[%clk 0:02:59]} 3. Nf3 {[%clk 0:02:52]}  cxd4 {[%clk 0:02:57]} 4. Nxd4 {[%clk 0:02:53]}  Nc6 {[%clk 0:02:57]} 5. g3 {[%clk 0:02:41]}  g6 {[%clk 0:02:57]} 6. Bg2 {[%clk 0:02:41]}  Bg7 {[%clk 0:02:58]} 7. Nc3 {[%clk 0:02:41]}  O-O {[%clk 0:02:58]} 8. O-O {[%clk 0:02:41]}  d6 {[%clk 0:02:57]} 9. Nxc6 {[%clk 0:02:31]}  bxc6 {[%clk 0:02:58]} 10. Bxc6 {[%clk 0:02:31]}  Rb8 {[%clk 0:02:58]} 11. Bg2 {[%clk 0:02:24]}  Be6 {[%clk 0:02:58]} 12. Qa4 {[%clk 0:02:13]}  Nd7 {[%clk 0:02:49]} 13. Nd5 {[%clk 0:01:30]}  Nb6 {[%clk 0:02:40]} 14. Qxa7 {[%clk 0:01:25]}  Nxc4 {[%clk 0:02:19]} 15. Nxe7+ {[%clk 0:01:23]}  Kh8 {[%clk 0:02:20]} 16. Nc6 {[%clk 0:01:22]}  Qb6 {[%clk 0:02:16]} 17. Qxb6 {[%clk 0:00:54]}  Rxb6 {[%clk 0:02:17]} 18. a4 {[%clk 0:00:39]}  d5 {[%clk 0:01:54]} 19. Ne7 {[%clk 0:00:34]}  Rd8 {[%clk 0:01:53]} 20. Rd1 {[%clk 0:00:29]}  Nxb2 {[%clk 0:01:45]} 21. Bxb2 {[%clk 0:00:26]}  Rxb2 {[%clk 0:01:45]} 22. Bxd5 {[%clk 0:00:25]}  Bxd5 {[%clk 0:01:34]} 23. Rxd5 {[%clk 0:00:19]}  Re8 {[%clk 0:01:32]} 24. Re1 {[%clk 0:00:12]}  Bc3 {[%clk 0:01:16]} 25. Rc1 {[%clk 0:00:12]}  Bf6 {[%clk 0:01:08]} 26. Rc8 {[%clk 0:00:12]}  Rxc8 {[%clk 0:00:44]} 27. Nxc8 {[%clk 0:00:13]}  Rxe2 {[%clk 0:00:44]} 28. a5 {[%clk 0:00:13]}  Ra2 {[%clk 0:00:45]} 29. Nb6 {[%clk 0:00:12]}  Bc3 {[%clk 0:00:44]} 30. Nc4 {[%clk 0:00:11]}  Ra4 {[%clk 0:00:44]} 31. Rc5 {[%clk 0:00:11]}  Ra2 {[%clk 0:00:42]} 32. Rc8+ {[%clk 0:00:09]}  Kg7 {[%clk 0:00:42]} 33. Rc6 {[%clk 0:00:05]}  Bd4 {[%clk 0:00:35]} 34. a6 {[%clk 0:00:04]}  Rxf2 {[%clk 0:00:33]} 35. Kh1 {[%clk 0:00:05]}  Rc2 {[%clk 0:00:33]} 36. Rc7 {[%clk 0:00:02]}  g5 {[%clk 0:00:31]} 37. Rc6 {[%clk 0:00:02]}  g4 {[%clk 0:00:29]} 38. Ne5 {[%clk 0:00:03]}  Ra2 {[%clk 0:00:18]} 39. Nxg4 {[%clk 0:00:03]}  h5 {[%clk 0:00:18]} 40. Rc4 {[%clk 0:00:02]}  Ra1+ {[%clk 0:00:14]} 41. Kg2 {[%clk 0:00:03]}  Rg1+ {[%clk 0:00:15]} 42. Kh3 {[%clk 0:00:03]}  hxg4+ {[%clk 0:00:16]} 43. Kxg4 {[%clk 0:00:04]}  Bf2 {[%clk 0:00:09]} 44. Rc2 {[%clk 0:00:04]}  Ba7 {[%clk 0:00:08]} 45. Rc7 {[%clk 0:00:04]}  Be3 {[%clk 0:00:08]} 46. Rc3 {[%clk 0:00:04]}  Bd4 {[%clk 0:00:08]} 47. Rc4 {[%clk 0:00:05]}  Bf2 {[%clk 0:00:08]} 48. Ra4 {[%clk 0:00:05]}  Ba7 {[%clk 0:00:08]} 49. h4 {[%clk 0:00:05]}  Rb1 {[%clk 0:00:08]} 50. Ra3 {[%clk 0:00:05]}  Rb2 {[%clk 0:00:08]} 51. Kh3 {[%clk 0:00:06]}  Rb5 {[%clk 0:00:08]} 52. Kg4 {[%clk 0:00:06]}  Rb6 {[%clk 0:00:08]} 53. Ra4 {[%clk 0:00:06]}  Rc6 {[%clk 0:00:09]} 54. Kh3 {[%clk 0:00:06]}  Rc7 {[%clk 0:00:09]} 55. g4 {[%clk 0:00:06]}  Rc3+ {[%clk 0:00:08]} 56. Kg2 {[%clk 0:00:07]}  Kg6 {[%clk 0:00:07]} 57. Ra5 {[%clk 0:00:07]}  Rb3 {[%clk 0:00:08]} 58. h5+ {[%clk 0:00:07]}  Kh6 {[%clk 0:00:08]} 59. Kh2 {[%clk 0:00:07]}  Rc3 {[%clk 0:00:06]} 60. Rf5 {[%clk 0:00:07]}  Rc7 {[%clk 0:00:05]} 61. Rb5 {[%clk 0:00:06]}  Rc6 {[%clk 0:00:05]} 62. Rb7 {[%clk 0:00:07]}  Rxa6 {[%clk 0:00:04]} 63. Rxf7 {[%clk 0:00:07]}  Ra3 {[%clk 0:00:03]} 64. Rf5 {[%clk 0:00:06]}  Bb8+ {[%clk 0:00:03]} 65. Kg2 {[%clk 0:00:06]}  Bc7 {[%clk 0:00:03]} 66. Kf2 {[%clk 0:00:06]}  Bd8 {[%clk 0:00:03]} 67. Rd5 {[%clk 0:00:06]}  Bg5 {[%clk 0:00:03]} 68. Kg2 {[%clk 0:00:06]}  Ra2+ {[%clk 0:00:03]} 69. Kf3 {[%clk 0:00:06]}  Ra3+ {[%clk 0:00:03]} 70. Ke4 {[%clk 0:00:07]}  Ra4+ {[%clk 0:00:02]} 71. Ke5 {[%clk 0:00:06]}  Rf4 {[%clk 0:00:03]} 72. Rd6+ {[%clk 0:00:06]}  Kh7 {[%clk 0:00:03]} 73. Rg6 {[%clk 0:00:06]}  Rxg4 {[%clk 0:00:03]} 74. Kf5 {[%clk 0:00:07]}  Rf4+ {[%clk 0:00:02]} 75. Kxg5 {[%clk 0:00:08]}  Ra4 {[%clk 0:00:02]} 76. Rc6 {[%clk 0:00:07]}  Ra5+ {[%clk 0:00:03]} 77. Kg4 {[%clk 0:00:08]}  Ra4+ {[%clk 0:00:03]} 78. Kf5 {[%clk 0:00:09]}  Ra5+ {[%clk 0:00:04]} 79. Kg4 {[%clk 0:00:09]}  Rb5 {[%clk 0:00:04]} 80. Rc7+ {[%clk 0:00:09]}  Kh6 {[%clk 0:00:04]} 81. Rc6+ {[%clk 0:00:10]}  Kh7 {[%clk 0:00:04]} 82. Rc4 {[%clk 0:00:10]}  Rd5 {[%clk 0:00:04]} 83. Kh4 {[%clk 0:00:10]}  Rd7 {[%clk 0:00:04]} 84. Rg4 {[%clk 0:00:11]}  Re7 {[%clk 0:00:04]} 85. Rf4 {[%clk 0:00:11]}  Kh8 {[%clk 0:00:05]} 86. Kg5 {[%clk 0:00:12]}  Rg7+ {[%clk 0:00:05]} 87. Kh6 {[%clk 0:00:13]}  Rh7+ {[%clk 0:00:04]} 88. Kg6 {[%clk 0:00:14]}  Rg7+ {[%clk 0:00:05]} 89. Kf6 {[%clk 0:00:14]}  Rg8 {[%clk 0:00:04]} 90. Re4 {[%clk 0:00:13]}  Rf8+ {[%clk 0:00:03]} 91. Kg6 {[%clk 0:00:14]}  Rg8+ {[%clk 0:00:04]} 92. Kh6 {[%clk 0:00:14]}  Rb8 {[%clk 0:00:04]} 93. Re6 {[%clk 0:00:15]}  Rc8 {[%clk 0:00:04]} 94. Rf6 {[%clk 0:00:15]}  Rd8 {[%clk 0:00:05]} 95. Kg6 {[%clk 0:00:15]}  Rc8 {[%clk 0:00:05]} 96. h6 {[%clk 0:00:16]}  Rg8+ {[%clk 0:00:05]} 97. Kf7 {[%clk 0:00:16]}  Ra8 {[%clk 0:00:06]} 98. Kg6 {[%clk 0:00:16]}  Rg8+ {[%clk 0:00:06]} 99. Kh5 {[%clk 0:00:17]}  Rb8 {[%clk 0:00:07]} 100. Re6 {[%clk 0:00:17]}  Rc8 {[%clk 0:00:07]} 101. Re7 {[%clk 0:00:17]}  Rd8 {[%clk 0:00:07]} 102. Kg6 {[%clk 0:00:17]}  Re8 {[%clk 0:00:08]} 103. Rxe8# {[%clk 0:00:18]} 1-0


[Site "https://www.chess.com"]

[Event "Titled Tuesday Blitz March 28 Early 2023"]
[White "Shevtchenko, Olesya"]
[Black "Manon-og, Ramon Jr."]
[WhiteFideId "24131890"]
[BlackFideId "5200776"]
[WhiteElo "2003"]
[BlackElo "2374"]
[Result "1-0"]
[Round "07"]
[TimeControl "180+2"]
[Date "2023.03.28"]
[WhiteClock "0:01:10"]
[BlackClock "0:00:02"]

1. e4 {[%clk 0:02:57]}  c5 {[%clk 0:02:59]} 2. Nc3 {[%clk 0:02:55]}  d6 {[%clk 0:03:00]} 3. d4 {[%clk 0:02:55]}  cxd4 {[%clk 0:03:01]} 4. Qxd4 {[%clk 0:02:56]}  Nc6 {[%clk 0:03:01]} 5. Qd2 {[%clk 0:02:56]}  Nf6 {[%clk 0:03:00]} 6. b3 {[%clk 0:02:57]}  e6 {[%clk 0:02:56]} 7. Bb2 {[%clk 0:02:57]}  Be7 {[%clk 0:02:56]} 8. O-O-O {[%clk 0:02:57]}  O-O {[%clk 0:02:55]} 9. Kb1 {[%clk 0:02:57]}  a6 {[%clk 0:02:54]} 10. f3 {[%clk 0:02:56]}  b5 {[%clk 0:02:47]} 11. g4 {[%clk 0:02:57]}  b4 {[%clk 0:02:41]} 12. Na4 {[%clk 0:02:46]}  Bb7 {[%clk 0:02:36]} 13. h4 {[%clk 0:02:45]}  d5 {[%clk 0:02:29]} 14. e5 {[%clk 0:02:30]}  Nd7 {[%clk 0:02:24]} 15. f4 {[%clk 0:02:31]}  Nc5 {[%clk 0:02:07]} 16. Nxc5 {[%clk 0:02:27]}  Bxc5 {[%clk 0:02:08]} 17. Nf3 {[%clk 0:02:24]}  a5 {[%clk 0:02:08]} 18. Bb5 {[%clk 0:02:12]}  Qb6 {[%clk 0:02:02]} 19. Bxc6 {[%clk 0:02:10]}  Bxc6 {[%clk 0:02:03]} 20. Bd4 {[%clk 0:02:08]}  a4 {[%clk 0:02:00]} 21. Bxc5 {[%clk 0:02:01]}  Qxc5 {[%clk 0:02:01]} 22. Nd4 {[%clk 0:01:59]}  axb3 {[%clk 0:01:59]} 23. cxb3 {[%clk 0:01:58]}  Bb5 {[%clk 0:01:21]} 24. Rc1 {[%clk 0:01:54]}  Qb6 {[%clk 0:01:21]} 25. f5 {[%clk 0:01:50]}  Qa6 {[%clk 0:01:13]} 26. f6 {[%clk 0:01:42]}  Bd3+ {[%clk 0:01:12]} 27. Ka1 {[%clk 0:01:42]}  Ra7 {[%clk 0:01:00]} 28. Rh2 {[%clk 0:01:37]}  Rfa8 {[%clk 0:00:56]} 29. Nc6 {[%clk 0:01:33]}  Rc7 {[%clk 0:00:29]} 30. Ne7+ {[%clk 0:01:29]}  Rxe7 {[%clk 0:00:19]} 31. fxe7 {[%clk 0:01:30]}  Be4 {[%clk 0:00:11]} 32. Qxb4 {[%clk 0:01:23]}  Re8 {[%clk 0:00:08]} 33. h5 {[%clk 0:01:19]}  Qa7 {[%clk 0:00:05]} 34. Qc5 {[%clk 0:01:15]}  Qb7 {[%clk 0:00:02]} 35. h6 {[%clk 0:01:15]}  gxh6 {[%clk 0:00:02]} 36. Rxh6 {[%clk 0:01:12]}  Rxe7 {[%clk 0:00:02]} 37. Qc8+ {[%clk 0:01:11]}  Kg7 {[%clk 0:00:02]} 38. Qxb7 {[%clk 0:01:11]}  Rxb7 {[%clk 0:00:03]} 39. Rh2 {[%clk 0:01:11]}  d4 {[%clk 0:00:03]} 40. Rc4 {[%clk 0:01:09]}  Rd7 {[%clk 0:00:02]} 41. Rd2 {[%clk 0:01:09]}  d3 {[%clk 0:00:02]} 42. Rxe4 {[%clk 0:01:10]} 1-0


[Site "https://www.chess.com"]

[Event "Titled Tuesday Blitz March 28 Early 2023"]
[White "Sanchez Alvares, Kelvin Antonio"]
[Black "Fernandez Sanchez, Mario Andres"]
[WhiteFideId "3906680"]
[BlackFideId "6501621"]
[WhiteElo "2217"]
[BlackElo "2050"]
[Result "1-0"]
[Round "07"]
[TimeControl "180+2"]
[Date "2023.03.28"]
[WhiteClock "0:00:11"]
[BlackClock "0:00:01"]

1. e4 {[%clk 0:02:46]}  c5 {[%clk 0:02:58]} 2. Nf3 {[%clk 0:02:42]}  Nc6 {[%clk 0:02:58]} 3. d4 {[%clk 0:02:42]}  cxd4 {[%clk 0:02:59]} 4. Nxd4 {[%clk 0:02:43]}  g6 {[%clk 0:03:00]} 5. c4 {[%clk 0:02:42]}  Nf6 {[%clk 0:02:59]} 6. Nc3 {[%clk 0:02:42]}  Nxd4 {[%clk 0:02:59]} 7. Qxd4 {[%clk 0:02:43]}  d6 {[%clk 0:02:59]} 8. Be3 {[%clk 0:02:41]}  Bg7 {[%clk 0:02:59]} 9. f3 {[%clk 0:02:41]}  O-O {[%clk 0:02:59]} 10. Qd2 {[%clk 0:02:40]}  Be6 {[%clk 0:02:55]} 11. Rc1 {[%clk 0:02:40]}  a6 {[%clk 0:02:53]} 12. Be2 {[%clk 0:02:38]}  Rc8 {[%clk 0:02:52]} 13. b3 {[%clk 0:02:38]}  Nd7 {[%clk 0:02:45]} 14. O-O {[%clk 0:02:37]}  Qa5 {[%clk 0:02:44]} 15. Nd5 {[%clk 0:02:23]}  Qd8 {[%clk 0:02:35]} 16. Rfd1 {[%clk 0:02:21]}  Bxd5 {[%clk 0:02:34]} 17. cxd5 {[%clk 0:02:21]}  b5 {[%clk 0:02:24]} 18. Rc6 {[%clk 0:02:19]}  Nb8 {[%clk 0:02:17]} 19. Bb6 {[%clk 0:02:02]}  Qd7 {[%clk 0:02:11]} 20. Rc2 {[%clk 0:01:54]}  Rxc2 {[%clk 0:02:08]} 21. Qxc2 {[%clk 0:01:52]}  Rc8 {[%clk 0:02:09]} 22. Qd2 {[%clk 0:01:52]}  Qb7 {[%clk 0:02:05]} 23. Be3 {[%clk 0:01:51]}  Nd7 {[%clk 0:02:03]} 24. Rc1 {[%clk 0:01:49]}  h5 {[%clk 0:01:46]} 25. Kf1 {[%clk 0:01:33]}  Be5 {[%clk 0:01:43]} 26. g3 {[%clk 0:01:33]}  Bg7 {[%clk 0:01:32]} 27. Rxc8+ {[%clk 0:01:21]}  Qxc8 {[%clk 0:01:31]} 28. Qc1 {[%clk 0:01:21]}  Qxc1+ {[%clk 0:01:28]} 29. Bxc1 {[%clk 0:01:21]}  Bd4 {[%clk 0:01:29]} 30. a4 {[%clk 0:01:15]}  bxa4 {[%clk 0:01:28]} 31. bxa4 {[%clk 0:01:15]}  Nc5 {[%clk 0:01:25]} 32. Bd1 {[%clk 0:01:11]}  Kg7 {[%clk 0:01:00]} 33. Bd2 {[%clk 0:01:11]}  f5 {[%clk 0:00:58]} 34. exf5 {[%clk 0:01:09]}  gxf5 {[%clk 0:00:58]} 35. f4 {[%clk 0:01:09]}  Kf6 {[%clk 0:00:51]} 36. a5 {[%clk 0:01:07]}  h4 {[%clk 0:00:49]} 37. gxh4 {[%clk 0:01:00]}  Ne4 {[%clk 0:00:49]} 38. Be1 {[%clk 0:00:58]}  Bc3 {[%clk 0:00:46]} 39. Bxc3+ {[%clk 0:00:28]}  Nxc3 {[%clk 0:00:47]} 40. Be2 {[%clk 0:00:28]}  Nxd5 {[%clk 0:00:34]} 41. Bxa6 {[%clk 0:00:27]}  e5 {[%clk 0:00:35]} 42. fxe5+ {[%clk 0:00:27]}  dxe5 {[%clk 0:00:36]} 43. Bb7 {[%clk 0:00:27]}  Nc7 {[%clk 0:00:35]} 44. a6 {[%clk 0:00:24]}  e4 {[%clk 0:00:33]} 45. a7 {[%clk 0:00:24]}  Ke5 {[%clk 0:00:31]} 46. h5 {[%clk 0:00:20]}  Kf6 {[%clk 0:00:28]} 47. h4 {[%clk 0:00:19]}  Kg7 {[%clk 0:00:27]} 48. Bc8 {[%clk 0:00:19]}  Kh6 {[%clk 0:00:25]} 49. Bxf5 {[%clk 0:00:19]}  Kxh5 {[%clk 0:00:18]} 50. Ke2 {[%clk 0:00:18]}  Kxh4 {[%clk 0:00:19]} 51. Ke3 {[%clk 0:00:18]}  Kg5 {[%clk 0:00:19]} 52. Kxe4 {[%clk 0:00:19]}  Kf6 {[%clk 0:00:19]} 53. Bg4 {[%clk 0:00:16]}  Ke7 {[%clk 0:00:19]} 54. Ke5 {[%clk 0:00:16]}  Na8 {[%clk 0:00:14]} 55. Kd5 {[%clk 0:00:16]}  Kd8 {[%clk 0:00:10]} 56. Kc6 {[%clk 0:00:15]}  Nc7 {[%clk 0:00:09]} 57. Kb7 {[%clk 0:00:13]}  Na8 {[%clk 0:00:04]} 58. Kxa8 {[%clk 0:00:12]}  Kc7 {[%clk 0:00:04]} 59. Bh3 {[%clk 0:00:11]}  Kb6 {[%clk 0:00:01]} 60. Kb8 {[%clk 0:00:11]} 1-0


[Site "https://www.chess.com"]

[Event "Titled Tuesday Blitz March 28 Early 2023"]
[White "Jaskolka, Tomasz"]
[Black "Quirke, Jeffrey"]
[WhiteFideId "1170791"]
[BlackFideId "2013029"]
[WhiteElo "2155"]
[BlackElo "2244"]
[Result "1-0"]
[Round "07"]
[TimeControl "180+2"]
[Date "2023.03.28"]
[WhiteClock "0:00:04"]
[BlackClock "0:00:03"]

1. e4 {[%clk 0:03:00]}  Nf6 {[%clk 0:02:57]} 2. e5 {[%clk 0:02:59]}  Nd5 {[%clk 0:02:57]} 3. c4 {[%clk 0:03:00]}  Nb6 {[%clk 0:02:56]} 4. c5 {[%clk 0:03:00]}  Nd5 {[%clk 0:02:56]} 5. Nc3 {[%clk 0:03:01]}  c6 {[%clk 0:02:54]} 6. d4 {[%clk 0:02:59]}  d6 {[%clk 0:02:54]} 7. cxd6 {[%clk 0:02:57]}  exd6 {[%clk 0:02:53]} 8. Nxd5 {[%clk 0:02:56]}  cxd5 {[%clk 0:02:52]} 9. f4 {[%clk 0:02:55]}  Nc6 {[%clk 0:02:46]} 10. Nf3 {[%clk 0:02:51]}  Bf5 {[%clk 0:02:41]} 11. Be2 {[%clk 0:02:46]}  Be7 {[%clk 0:02:40]} 12. O-O {[%clk 0:02:45]}  O-O {[%clk 0:02:39]} 13. Be3 {[%clk 0:02:44]}  Qb6 {[%clk 0:02:31]} 14. Qd2 {[%clk 0:02:43]}  Rac8 {[%clk 0:02:15]} 15. Kh1 {[%clk 0:02:41]}  Rfd8 {[%clk 0:02:14]} 16. Rac1 {[%clk 0:02:32]}  dxe5 {[%clk 0:02:02]} 17. fxe5 {[%clk 0:02:14]}  Bb4 {[%clk 0:01:55]} 18. Qd1 {[%clk 0:02:12]}  Be4 {[%clk 0:01:40]} 19. Ng5 {[%clk 0:02:05]}  Nxe5 {[%clk 0:01:31]} 20. Rxc8 {[%clk 0:01:26]}  Rxc8 {[%clk 0:01:30]} 21. Qb3 {[%clk 0:01:14]}  Nc4 {[%clk 0:00:55]} 22. Nxe4 {[%clk 0:00:49]}  Nxe3 {[%clk 0:00:51]} 23. Qxe3 {[%clk 0:00:50]}  dxe4 {[%clk 0:00:44]} 24. Qxe4 {[%clk 0:00:50]}  Bf8 {[%clk 0:00:27]} 25. d5 {[%clk 0:00:25]}  Qxb2 {[%clk 0:00:20]} 26. h3 {[%clk 0:00:20]}  Rc1 {[%clk 0:00:18]} 27. Qf5 {[%clk 0:00:10]}  Rxf1+ {[%clk 0:00:17]} 28. Bxf1 {[%clk 0:00:11]}  Qxa2 {[%clk 0:00:16]} 29. Qc8 {[%clk 0:00:09]}  Qxd5 {[%clk 0:00:08]} 30. Be2 {[%clk 0:00:04]}  Qc6 {[%clk 0:00:08]} 31. Qa8 {[%clk 0:00:04]}  a6 {[%clk 0:00:06]} 32. Bf3 {[%clk 0:00:04]}  Qc1+ {[%clk 0:00:05]} 33. Kh2 {[%clk 0:00:05]}  Qf4+ {[%clk 0:00:05]} 34. Kh1 {[%clk 0:00:05]}  Qc1+ {[%clk 0:00:05]} 35. Kh2 {[%clk 0:00:05]}  b5 {[%clk 0:00:03]} 36. Kg3 {[%clk 0:00:05]}  b4 {[%clk 0:00:04]} 37. Qb7 {[%clk 0:00:05]}  Qc3 {[%clk 0:00:03]} 38. Kh2 {[%clk 0:00:04]}  b3 {[%clk 0:00:03]} 39. Bd5 {[%clk 0:00:04]} 1-0


[Site "https://www.chess.com"]

[Event "Titled Tuesday Blitz March 28 Early 2023"]
[White "Saya, Ethan"]
[Black "Belozerov, Andrei"]
[WhiteFideId "26095181"]
[BlackFideId "4120213"]
[WhiteElo "2150"]
[BlackElo "2360"]
[Result "0-1"]
[Round "07"]
[TimeControl "180+2"]
[Date "2023.03.28"]
[WhiteClock "0:00:43"]
[BlackClock "0:01:38"]

1. d4 {[%clk 0:02:47]}  d5 {[%clk 0:02:59]} 2. c4 {[%clk 0:02:41]}  e6 {[%clk 0:02:59]} 3. Nf3 {[%clk 0:02:40]}  Nf6 {[%clk 0:02:59]} 4. g3 {[%clk 0:02:40]}  dxc4 {[%clk 0:02:59]} 5. Bg2 {[%clk 0:02:37]}  Be7 {[%clk 0:02:59]} 6. O-O {[%clk 0:02:37]}  O-O {[%clk 0:03:00]} 7. Qc2 {[%clk 0:02:26]}  a6 {[%clk 0:02:59]} 8. a4 {[%clk 0:02:27]}  Bd7 {[%clk 0:02:59]} 9. Bg5 {[%clk 0:02:11]}  Bc6 {[%clk 0:02:48]} 10. Qxc4 {[%clk 0:02:11]}  Nbd7 {[%clk 0:02:47]} 11. Nc3 {[%clk 0:02:03]}  h6 {[%clk 0:02:47]} 12. Bxf6 {[%clk 0:02:02]}  Nxf6 {[%clk 0:02:47]} 13. e4 {[%clk 0:02:00]}  Bxe4 {[%clk 0:02:17]} 14. Nxe4 {[%clk 0:01:37]}  Nxe4 {[%clk 0:02:15]} 15. Rad1 {[%clk 0:01:31]}  c6 {[%clk 0:02:11]} 16. Ne5 {[%clk 0:01:29]}  Nd6 {[%clk 0:02:04]} 17. Qb3 {[%clk 0:01:26]}  a5 {[%clk 0:01:55]} 18. Rfe1 {[%clk 0:01:18]}  Ra6 {[%clk 0:01:54]} 19. Nc4 {[%clk 0:01:16]}  Nxc4 {[%clk 0:01:49]} 20. Qxc4 {[%clk 0:01:16]}  Rb6 {[%clk 0:01:49]} 21. b3 {[%clk 0:01:16]}  Rb4 {[%clk 0:01:48]} 22. Qc3 {[%clk 0:01:13]}  Bf6 {[%clk 0:01:46]} 23. Re4 {[%clk 0:01:08]}  Qb6 {[%clk 0:01:46]} 24. Rd3 {[%clk 0:01:02]}  Rd8 {[%clk 0:01:44]} 25. Qc5 {[%clk 0:00:56]}  Qxc5 {[%clk 0:01:43]} 26. dxc5 {[%clk 0:00:43]}  Rxd3 {[%clk 0:01:38]} 0-1


[Site "https://www.chess.com"]

[Event "Titled Tuesday Blitz March 28 Early 2023"]
[White "Vivas Zamora, Fabian Ernesto"]
[Black "Orlov, Georgi"]
[WhiteFideId "3902480"]
[BlackFideId "2011271"]
[WhiteElo "2262"]
[BlackElo "2584"]
[Result "1/2-1/2"]
[Round "07"]
[TimeControl "180+2"]
[Date "2023.03.28"]
[WhiteClock "0:00:05"]
[BlackClock "0:00:03"]

1. e4 {[%clk 0:03:00]}  d6 {[%clk 0:02:59]} 2. d4 {[%clk 0:03:00]}  Nf6 {[%clk 0:03:00]} 3. Nc3 {[%clk 0:03:01]}  c6 {[%clk 0:03:00]} 4. f4 {[%clk 0:03:00]}  g6 {[%clk 0:03:00]} 5. Nf3 {[%clk 0:02:59]}  Bg7 {[%clk 0:03:00]} 6. Bd3 {[%clk 0:02:55]}  O-O {[%clk 0:03:00]} 7. O-O {[%clk 0:02:53]}  Na6 {[%clk 0:02:59]} 8. e5 {[%clk 0:02:51]}  Nd5 {[%clk 0:02:58]} 9. Nxd5 {[%clk 0:02:49]}  cxd5 {[%clk 0:02:58]} 10. c3 {[%clk 0:02:45]}  Nc7 {[%clk 0:02:54]} 11. Qe1 {[%clk 0:02:35]}  b6 {[%clk 0:02:52]} 12. Qh4 {[%clk 0:02:09]}  f5 {[%clk 0:02:40]} 13. Re1 {[%clk 0:01:50]}  e6 {[%clk 0:02:03]} 14. Qxd8 {[%clk 0:01:38]}  Rxd8 {[%clk 0:02:03]} 15. exd6 {[%clk 0:01:36]}  Rxd6 {[%clk 0:02:03]} 16. a4 {[%clk 0:01:32]}  Ba6 {[%clk 0:01:55]} 17. Bc2 {[%clk 0:00:41]}  Rc8 {[%clk 0:01:49]} 18. Be3 {[%clk 0:00:35]}  Ne8 {[%clk 0:01:40]} 19. a5 {[%clk 0:00:29]}  b5 {[%clk 0:01:40]} 20. Bd3 {[%clk 0:00:28]}  Nf6 {[%clk 0:01:29]} 21. Bf2 {[%clk 0:00:27]}  Ne4 {[%clk 0:01:29]} 22. Bh4 {[%clk 0:00:27]}  Rd7 {[%clk 0:01:20]} 23. Bxe4 {[%clk 0:00:19]}  fxe4 {[%clk 0:01:10]} 24. Ne5 {[%clk 0:00:19]}  Rb7 {[%clk 0:01:06]} 25. Rac1 {[%clk 0:00:12]}  Rbc7 {[%clk 0:01:01]} 26. Re3 {[%clk 0:00:04]}  b4 {[%clk 0:01:00]} 27. Be1 {[%clk 0:00:05]}  Bf8 {[%clk 0:00:54]} 28. Rd1 {[%clk 0:00:05]}  bxc3 {[%clk 0:00:54]} 29. Rxc3 {[%clk 0:00:05]}  Rxc3 {[%clk 0:00:45]} 30. Bxc3 {[%clk 0:00:06]}  Bb5 {[%clk 0:00:43]} 31. Kf2 {[%clk 0:00:06]}  Be7 {[%clk 0:00:41]} 32. Ke3 {[%clk 0:00:06]}  Ba4 {[%clk 0:00:36]} 33. Rc1 {[%clk 0:00:05]}  Bb3 {[%clk 0:00:35]} 34. g4 {[%clk 0:00:04]}  Bd8 {[%clk 0:00:34]} 35. a6 {[%clk 0:00:03]}  Ba4 {[%clk 0:00:26]} 36. Bd2 {[%clk 0:00:03]}  Rxc1 {[%clk 0:00:25]} 37. Bxc1 {[%clk 0:00:04]}  Bb5 {[%clk 0:00:26]} 38. Bd2 {[%clk 0:00:04]}  Bxa6 {[%clk 0:00:24]} 39. Nc6 {[%clk 0:00:04]}  Bb6 {[%clk 0:00:24]} 40. Ba5 {[%clk 0:00:03]}  Bb7 {[%clk 0:00:21]} 41. Bxb6 {[%clk 0:00:03]}  axb6 {[%clk 0:00:21]} 42. Nd8 {[%clk 0:00:03]}  Bc8 {[%clk 0:00:21]} 43. Nc6 {[%clk 0:00:04]}  Bd7 {[%clk 0:00:20]} 44. Ne5 {[%clk 0:00:04]}  Be8 {[%clk 0:00:18]} 45. g5 {[%clk 0:00:04]}  Kf8 {[%clk 0:00:18]} 46. Ng4 {[%clk 0:00:04]}  Kg7 {[%clk 0:00:17]} 47. h4 {[%clk 0:00:05]}  Bb5 {[%clk 0:00:16]} 48. Kd2 {[%clk 0:00:04]}  Bc4 {[%clk 0:00:16]} 49. Kc3 {[%clk 0:00:04]}  Be2 {[%clk 0:00:16]} 50. Ne3 {[%clk 0:00:04]}  Kf7 {[%clk 0:00:14]} 51. Kd2 {[%clk 0:00:03]}  Bf3 {[%clk 0:00:11]} 52. Nc2 {[%clk 0:00:03]}  Bg2 {[%clk 0:00:09]} 53. Ke3 {[%clk 0:00:03]}  Bf1 {[%clk 0:00:09]} 54. Nb4 {[%clk 0:00:03]}  Ke8 {[%clk 0:00:07]} 55. Nc6 {[%clk 0:00:03]}  Bb5 {[%clk 0:00:06]} 56. Ne5 {[%clk 0:00:04]}  Ke7 {[%clk 0:00:06]} 57. Ng4 {[%clk 0:00:04]}  Ba4 {[%clk 0:00:04]} 58. Ne5 {[%clk 0:00:04]}  Bb5 {[%clk 0:00:04]} 59. Ng4 {[%clk 0:00:04]}  Ba4 {[%clk 0:00:04]} 60. Nf6 {[%clk 0:00:05]}  h5 {[%clk 0:00:03]} 61. Nh7 {[%clk 0:00:04]}  Kf7 {[%clk 0:00:01]} 62. Nf6 {[%clk 0:00:04]}  Ke7 {[%clk 0:00:02]} 63. Nh7 {[%clk 0:00:04]}  Kf7 {[%clk 0:00:02]} 64. Nf6 {[%clk 0:00:05]}  Ke7 {[%clk 0:00:03]} 1/2-1/2


[Site "https://www.chess.com"]

[Event "Titled Tuesday Blitz March 28 Early 2023"]
[White "Kashtanov, Ruslan"]
[Black "Demin, Vladimir"]
[WhiteFideId "4124871"]
[BlackFideId "4167457"]
[WhiteElo "2276"]
[BlackElo "2582"]
[Result "1-0"]
[Round "07"]
[TimeControl "180+2"]
[Date "2023.03.28"]
[WhiteClock "0:00:35"]
[BlackClock "0:00:38"]

1. e4 {[%clk 0:02:49]}  e5 {[%clk 0:02:58]} 2. Nf3 {[%clk 0:02:48]}  Nc6 {[%clk 0:02:59]} 3. d4 {[%clk 0:02:48]}  exd4 {[%clk 0:02:59]} 4. Bc4 {[%clk 0:02:48]}  Nf6 {[%clk 0:02:57]} 5. e5 {[%clk 0:02:48]}  d5 {[%clk 0:02:57]} 6. Bb5 {[%clk 0:02:48]}  Nd7 {[%clk 0:02:57]} 7. O-O {[%clk 0:02:47]}  Be7 {[%clk 0:02:55]} 8. Bxc6 {[%clk 0:02:39]}  bxc6 {[%clk 0:02:56]} 9. Nxd4 {[%clk 0:02:39]}  Nb8 {[%clk 0:02:50]} 10. Nc3 {[%clk 0:02:30]}  O-O {[%clk 0:02:49]} 11. Re1 {[%clk 0:02:22]}  c5 {[%clk 0:02:49]} 12. Ndb5 {[%clk 0:02:00]}  a6 {[%clk 0:02:41]} 13. Qxd5 {[%clk 0:01:53]}  axb5 {[%clk 0:01:55]} 14. Qxa8 {[%clk 0:01:52]}  Bd7 {[%clk 0:01:48]} 15. Qd5 {[%clk 0:01:40]}  Qc8 {[%clk 0:01:45]} 16. a4 {[%clk 0:01:24]}  b4 {[%clk 0:01:41]} 17. Ne4 {[%clk 0:01:23]}  Bc6 {[%clk 0:01:41]} 18. Qc4 {[%clk 0:01:22]}  Nd7 {[%clk 0:01:30]} 19. e6 {[%clk 0:01:02]}  Ne5 {[%clk 0:01:29]} 20. exf7+ {[%clk 0:01:03]}  Rxf7 {[%clk 0:01:29]} 21. Qe2 {[%clk 0:01:04]}  Qf5 {[%clk 0:01:16]} 22. Ng3 {[%clk 0:00:56]}  Nf3+ {[%clk 0:01:03]} 23. Qxf3 {[%clk 0:00:45]}  Qxc2 {[%clk 0:00:38]} 24. Qe2 {[%clk 0:00:35]} 1-0


[Site "https://www.chess.com"]